bitfinex/quotes_ETHUSD_20250507
["timestamp","ask_amount","ask_price","bid_price","bid_amount"]
[1746582113080,5.42741402,1842.5,1842.1,10.98840948]
[1746582113081,5.42829225,1842.2,1842.1,5.56]
[1746582113252,5.42863551,1842.1,1841.8,19.541]
[1746582113581,8.42897956,1842.0,1841.9,0.00219049]
[1746582113761,1.38576151,1842.0,1841.6,0.00372375]
[1746582113961,8.42848318,1842.2,1841.7,5.42953656]
[1746582114159,3.0,1842.2,1841.8,5.44123467]
[1746582114486,0.5395,1842.3,1841.9,5.44080708]
[1746582114785,3.0,1842.2,1842.0,0.01183809]
[1746582114962,8.42842426,1842.2,1841.9,0.01183745]
[1746582115144,9.32519021,1842.2,1841.9,0.01183745]
[1746582115349,3.89676595,1842.2,1841.9,0.01183745]
[1746582115876,1.30389366,1842.2,1841.9,5.42900456]
[1746582116055,0.40712771,1842.2,1841.9,5.42900456]
[1746582116256,5.96752471,1842.3,1842.0,0.01183809]
[1746582116582,5.96752471,1842.3,1842.0,0.01183745]
[1746582116786,0.5395,1842.3,1842.0,5.44060198]
[1746582116986,3.5395,1842.3,1842.0,5.44066753]
[1746582117173,8.96756172,1842.3,1842.0,0.01183745]
[1746582117403,10.40710951,1842.3,1842.0,0.01183745]
[1746582117886,9.86760951,1842.3,1842.0,0.01183745]
[1746582118086,9.86760951,1842.3,1842.0,5.44063664]
[1746582118087,1.43954779,1842.3,1842.0,5.44063664]
[1746582118250,5.4279339,1842.4,1842.0,5.44063664]
[1746582118789,3.0,1842.4,1842.0,5.44062022]
[1746582118996,8.42791835,1842.4,1842.0,5.99071825]
[1746582119492,8.42791835,1842.4,1842.0,5.97871927]
[1746582119493,3.39981842,1842.4,1842.0,5.97871927]
[1746582119655,3.0,1842.4,1842.0,5.97871927]
[1746582119854,3.0,1842.4,1842.1,5.662]
[1746582120191,0.4063013,1842.6,1842.4,5.42758796]
[1746582120361,5.96583959,1842.9,1842.5,0.55]
[1746582120552,0.5395,1842.9,1842.5,0.75841788]
[1746582120752,5.42640094,1842.9,1842.5,0.75841788]
[1746582120976,0.30192538,1842.8,1842.6,5.42698571]
[1746582121183,0.30192538,1842.8,1842.5,12.13268757]
[1746582121385,0.30192538,1842.8,1842.7,5.63518959]
[1746582121686,0.30192538,1842.8,1842.7,11.19908924]
[1746582121888,5.42486756,1843.4,1843.0,0.55]
[1746582122089,5.42486756,1843.4,1843.0,17.3239256]
[1746582122257,8.4250662,1843.3,1843.1,0.20776293]
[1746582122454,0.5395,1843.5,1843.1,0.75776293]
[1746582122455,1.14482102,1843.2,1843.1,0.75776293]
[1746582122687,0.3023144,1843.2,1843.1,0.75776293]
[1746582125097,8.72766162,1843.2,1843.1,0.20776293]
[1746582125791,3.3023144,1843.2,1843.1,0.20776293]
[1746582126372,8.72766162,1843.2,1843.1,0.20776293]
[1746582126904,3.3023144,1843.2,1843.1,0.75776293]
[1746582127263,0.3023144,1843.2,1843.1,6.18340451]
[1746582127462,0.3023144,1843.2,1843.1,0.75776293]
[1746582127722,0.3023144,1843.2,1843.1,7.00790451]
[1746582128364,0.3023144,1843.2,1843.1,1.58226293]
[1746582128596,0.3023144,1843.2,1843.1,7.00790451]
[1746582128812,0.3023144,1843.2,1843.1,1.58226293]
[1746582129705,0.3023144,1843.2,1843.1,7.00790451]
[1746582129897,0.3023144,1843.2,1843.1,1.58226293]
[1746582130077,0.3023144,1843.2,1843.1,7.00790451]
[1746582130507,0.3023144,1843.2,1843.1,7.06215504]
[1746582130714,0.3023144,1843.2,1843.1,7.00790451]
[1746582130902,8.42425281,1843.6,1843.2,5.97520081]
[1746582131272,8.42425281,1843.6,1843.4,0.55]
[1746582131468,8.42425281,1843.6,1843.4,5.97462338]
[1746582131469,3.0,1843.6,1843.4,5.97462338]
[1746582131672,3.0,1843.6,1843.5,0.7539565]
[1746582132175,5.9626466,1844.0,1843.6,0.55]
[1746582132497,0.59626466,1843.9,1843.7,5.6238694]
[1746582132812,0.30323795,1843.8,1843.7,0.75013398]
[1746582133783,3.30323795,1843.8,1843.7,0.75013398]
[1746582134107,8.72681968,1843.8,1843.7,0.20013398]
[1746582134482,9.26631968,1843.8,1843.4,6.04]
[1746582134687,0.92663197,1843.7,1843.4,11.46461094]
[1746582135010,0.92663197,1843.7,1843.4,6.04]
[1746582135214,0.92663197,1843.7,1843.4,11.46467175]
[1746582135397,6.35052713,1843.7,1843.5,0.19697706]
[1746582135713,0.30323795,1843.6,1843.5,0.19697706]
[1746582136514,0.30323795,1843.6,1843.3,11.84028693]
[1746582136709,0.30323795,1843.6,1843.5,0.19697706]
[1746582136914,0.30323795,1843.6,1843.4,0.19700085]
[1746582137089,0.30323795,1843.6,1843.5,0.19697706]
[1746582137614,0.30323795,1843.6,1843.4,5.42465836]
[1746582137912,0.30323795,1843.6,1843.5,0.74697706]
[1746582138078,8.42371743,1843.8,1843.5,0.74697706]
[1746582138276,9.8084314,1843.8,1843.5,0.74697706]
[1746582138776,4.38471397,1843.8,1843.5,6.17129813]
[1746582138984,0.30273463,1843.7,1843.6,5.97413688]
[1746582139525,0.30273463,1843.7,1843.6,6.17109015]
[1746582139897,3.0,1843.8,1843.6,6.17109015]
[1746582140223,3.0,1843.8,1843.7,0.55]
[1746582140381,3.0,1843.8,1843.7,0.74692948]
[1746582140831,6.37252339,1844.0,1843.7,0.74692948]
[1746582141117,0.30256337,1843.9,1843.7,6.17077559]
[1746582141279,0.30256337,1843.9,1843.7,6.92357559]
[1746582141715,0.30256337,1843.9,1843.7,1.49972948]
[1746582141927,5.83283172,1844.0,1843.7,1.49972948]
[1746582143746,0.30253718,1843.9,1843.7,1.49972948]
[1746582144433,0.30253718,1843.8,1843.7,1.49972948]
[1746582145933,5.72597674,1843.9,1843.7,0.19692948]
[1746582146099,5.9961794,1843.8,1843.7,0.19692948]
[1746582146304,0.57259767,1843.8,1843.6,5.672]
[1746582146537,5.99619392,1843.8,1843.7,0.19315667]
[1746582146902,5.99619392,1843.8,1843.5,12.44135253]
[1746582147120,5.99619392,1843.8,1843.7,0.19315667]
[1746582147400,5.4238759,1843.7,1843.4,5.42474705]
[1746582147600,5.4238759,1843.7,1843.4,0.55]
[1746582147833,0.30338579,1843.6,1843.3,28.99564971]
[1746582148023,0.30338579,1843.6,1843.3,22.95564971]
[1746582148224,0.30338579,1843.6,1843.4,5.42466059]
[1746582148401,0.30338579,1843.6,1843.4,0.55]
[1746582148931,5.72756943,1843.6,1843.4,0.55]
[1746582149117,6.3002961,1843.6,1843.4,0.55]
[1746582149511,5.72785012,1843.5,1843.4,0.55]
[1746582149938,6.12596341,1843.5,1843.3,5.673]
[1746582150139,5.42475859,1843.4,1843.3,5.673]
[1746582150643,5.72814438,1843.4,1843.3,5.85180123]
[1746582152252,0.30338579,1843.4,1843.3,5.85180123]
[1746582152442,0.30338579,1843.4,1843.3,11.82685412]
[1746582152747,0.30338579,1843.4,1843.3,6.40180123]
[1746582153112,0.30338579,1843.4,1843.3,5.85180123]
[1746582153312,9.3407519,1843.4,1843.3,5.85180123]
[1746582153535,9.8802519,1843.4,1843.3,5.85180123]
[1746582154439,9.8802519,1843.4,1843.3,0.17880123]
[1746582154641,9.8802519,1843.4,1843.1,0.55]
[1746582154841,0.30338579,1843.3,1843.2,0.17952746]
[1746582156842,0.30338579,1843.3,1843.2,5.60487468]
[1746582157525,0.30338579,1843.3,1843.2,0.17952746]
[1746582157731,0.30338579,1843.3,1843.2,5.60487468]
[1746582158412,0.30338579,1843.3,1843.2,0.17952746]
[1746582161217,0.63372437,1843.3,1843.2,0.17952746]
[1746582161454,12.02357419,1843.3,1843.0,5.673]
[1746582161624,3.0,1843.2,1843.1,0.17955126]
[1746582161951,3.30338579,1843.2,1843.1,0.17955126]
[1746582162726,8.72873301,1843.2,1843.1,0.17955126]
[1746582162932,10.23109546,1843.2,1843.1,0.17955126]
[1746582164043,4.80574824,1843.2,1843.1,0.17955126]
[1746582164818,10.23109546,1843.2,1843.1,0.17955126]
[1746582166618,4.80574824,1843.2,1843.1,0.17955126]
[1746582166824,8.72873301,1843.2,1843.1,0.17955126]
[1746582167136,8.72873301,1843.2,1842.9,5.42619171]
[1746582167336,8.72873301,1843.2,1843.1,0.18242535]
[1746582167538,8.72873301,1843.2,1843.0,0.18244915]
[1746582167858,8.72873301,1843.2,1843.1,0.18242535]
[1746582168036,10.01397116,1843.2,1842.9,0.55]
[1746582168239,5.42564158,1843.1,1843.0,0.18244915]
[1746582168565,5.72902737,1843.1,1843.0,0.18244915]
[1746582169265,3.84288579,1843.1,1842.5,6.4856]
[1746582169465,8.42639888,1842.9,1842.6,0.55]
[1746582169630,5.42681934,1842.7,1842.6,0.55]
[1746582169833,5.73010667,1842.8,1842.6,0.55]
[1746582170034,5.42681934,1842.7,1842.6,0.55]
[1746582170331,5.42681934,1842.7,1842.5,5.674]
[1746582170551,5.73020513,1842.7,1842.5,5.674]
[1746582170748,5.42711386,1842.6,1842.5,5.674]
[1746582170951,9.58261623,1842.6,1842.5,5.674]
[1746582171351,5.42808323,1842.3,1842.1,3.62275251]
[1746582171555,5.4281328,1842.3,1842.1,3.62275251]
[1746582172134,3.0,1842.4,1842.1,9.05132769]
[1746582172336,3.0,1842.4,1842.1,3.62275251]
[1746582172968,0.30338579,1842.3,1842.1,9.0512027]
[1746582173183,0.30338579,1842.3,1842.1,3.62275251]
[1746582173868,0.30338579,1842.3,1842.1,0.55]
[1746582174041,0.30338579,1842.3,1842.1,5.97858413]
[1746582174243,0.30338579,1842.3,1842.1,5.97839316]
[1746582174830,0.30338579,1842.3,1842.1,0.55]
[1746582175565,0.30338579,1842.3,1842.1,5.97857292]
[1746582175765,0.30338579,1842.3,1842.1,5.97840508]
[1746582176569,0.30338579,1842.3,1842.1,0.55]
[1746582177243,0.30338579,1842.3,1842.1,5.97858508]
[1746582177763,0.30338579,1842.3,1842.1,5.97858591]
[1746582177972,0.30338579,1842.3,1842.1,0.55]
[1746582178946,0.30338579,1842.3,1842.0,6.24547099]
[1746582179150,0.30338579,1842.3,1842.0,0.8168]
[1746582179443,5.42829726,1842.2,1841.9,36.83989033]
[1746582179764,0.30338579,1842.1,1841.9,25.783]
[1746582180338,0.30338579,1842.1,1841.9,31.21212956]
[1746582180638,0.71927572,1842.1,1842.0,0.17037268]
[1746582180836,6.14786265,1842.1,1842.0,0.17037268]
[1746582181165,10.84497822,1842.1,1842.0,0.17037268]
[1746582181591,3.0,1841.9,1841.6,5.42994753]
[1746582181735,3.0,1842.0,1841.7,6.25479153]
[1746582181933,0.30338579,1841.8,1841.7,6.97523571]
[1746582182235,0.30338579,1841.8,1841.7,7.02952527]
[1746582182432,0.30338579,1841.8,1841.7,6.97523571]
[1746582182661,0.30338579,1842.2,1842.0,6.1826942]
[1746582182869,0.30338579,1842.2,1842.1,0.17034885]
[1746582183083,0.30338579,1842.2,1842.1,5.59893578]
[1746582183238,0.30338579,1842.2,1842.1,0.17034885]
[1746582183669,3.30338579,1842.2,1842.1,0.17034885]
[1746582183847,3.0,1842.2,1842.1,0.17034885]
[1746582184048,3.87314795,1842.2,1842.1,0.17034885]
[1746582184461,3.87314795,1842.2,1842.0,0.55]
[1746582184661,4.17653374,1842.2,1842.1,0.17647735]
[1746582184862,3.30338579,1842.2,1842.1,0.17647735]
[1746582185361,3.71422129,1842.2,1842.1,0.17647735]
[1746582185871,0.30338579,1842.2,1842.1,0.17647735]
[1746582186186,5.42801561,1842.3,1841.9,12.0647]
[1746582186387,8.42822928,1842.3,1842.1,0.17647735]
[1746582186541,3.30338579,1842.4,1842.1,5.42839715]
[1746582186742,3.30338579,1842.4,1842.2,0.17645352]
[1746582186960,0.30338579,1842.3,1842.2,0.17645352]
[1746582187443,0.30338579,1842.3,1842.1,10.85683331]
[1746582187645,0.30338579,1842.3,1842.2,0.17645352]
[1746582187841,0.70934755,1842.3,1842.1,5.42836508]
[1746582188041,0.30338579,1842.3,1842.2,0.17645352]
[1746582188243,0.30338579,1842.3,1842.1,5.42836508]
[1746582188472,0.30338579,1842.3,1842.2,0.17645352]
[1746582188790,0.30338579,1842.3,1842.1,5.42836508]
[1746582188978,0.30338579,1842.3,1842.2,0.17645352]
[1746582189384,0.30338579,1842.3,1842.0,0.55]
[1746582189681,0.30338579,1842.3,1842.1,0.17647735]
[1746582189881,1.17649551,1842.3,1842.1,0.17647735]
[1746582190182,8.42829225,1842.2,1842.1,0.17647735]
[1746582190557,8.42829225,1842.2,1841.9,11.273]
[1746582190746,0.30338579,1842.1,1841.9,11.273]
[1746582192339,5.73199195,1842.1,1841.7,6.7620739]
[1746582192555,6.65910975,1842.1,1841.7,12.4000739]
[1746582193007,0.30338579,1842.0,1841.7,12.4000739]
[1746582193357,5.42920816,1841.9,1841.5,0.8041]
[1746582193704,0.84630661,1841.8,1841.5,5.638]
[1746582194000,11.70572024,1841.8,1841.5,5.638]
[1746582194165,5.4298143,1841.7,1841.5,5.638]
[1746582194500,0.30338579,1841.6,1841.3,6.64451396]
[1746582194692,0.30338579,1841.6,1841.4,5.43049821]
[1746582194862,0.30338579,1841.6,1841.4,5.43053211]
[1746582195263,0.30338579,1841.6,1841.4,5.43049838]
[1746582195465,0.30338579,1841.7,1841.6,6.22046081]
[1746582195664,0.30338579,1841.7,1841.6,6.39807941]
[1746582196316,0.30338579,1841.8,1841.6,6.39807941]
[1746582196613,6.13800646,1841.8,1841.6,0.1776186]
[1746582196759,12.10725206,1841.8,1841.6,0.1776186]
[1746582196965,12.10725206,1841.8,1841.5,11.278]
[1746582196966,6.64049118,1841.7,1841.5,11.278]
[1746582197165,6.64061177,1841.7,1841.3,5.84023227]
[1746582197467,0.30338579,1841.6,1841.4,0.55]
[1746582197673,0.30338579,1841.6,1841.4,5.98036902]
[1746582198109,0.30338579,1841.6,1841.5,5.43035568]
[1746582198315,0.39884029,1841.8,1841.7,6.77016597]
[1746582198470,0.39884029,1841.8,1841.4,5.43046966]
[1746582198795,0.39884029,1841.8,1841.7,5.97976597]
[1746582199111,8.4289076,1842.0,1841.7,0.55]
[1746582199270,3.0,1842.0,1841.7,0.55]
[1746582199609,3.0,1841.8,1841.5,5.4302601]
[1746582200420,3.0,1841.8,1841.4,5.98045887]
[1746582200611,0.30453852,1841.7,1841.4,5.98045887]
[1746582200920,0.30453852,1841.7,1841.4,11.68245887]
[1746582201125,0.30453852,1841.7,1841.4,0.55]
[1746582201328,5.73448148,1841.7,1841.4,0.55]
[1746582201526,0.30453852,1841.7,1841.4,5.98052229]
[1746582201833,0.30453852,1841.6,1841.4,0.55]
[1746582202037,0.30453852,1841.6,1841.5,6.18855568]
[1746582202488,0.30453852,1841.6,1841.5,0.7582]
[1746582203212,0.30453852,1841.6,1841.5,6.73855568]
[1746582204471,0.30453852,1841.6,1841.5,1.3082]
[1746582206955,0.30453852,1841.6,1841.5,0.55]
[1746582208274,6.27414786,1841.6,1841.3,0.4094835]
[1746582208428,1.41747361,1841.6,1841.3,0.4094835]
[1746582208616,5.43065059,1841.4,1841.3,0.4094835]
[1746582209758,0.30453852,1841.4,1841.3,0.4094835]
[1746582210120,0.30453852,1841.4,1841.3,7.14712902]
[1746582210317,0.30453852,1841.4,1841.3,11.35382867]
[1746582210634,0.30453852,1842.0,1841.9,0.55]
[1746582210948,0.30453852,1842.0,1841.9,0.72512344]
[1746582211319,0.30453852,1842.0,1841.9,6.15429983]
[1746582212622,0.30453852,1842.0,1841.9,6.20858816]
[1746582212834,0.30453852,1842.0,1841.9,6.15429983]
[1746582213029,0.30453852,1842.3,1842.0,5.42868409]
[1746582213420,0.30453852,1842.3,1842.1,0.17507577]
[1746582213821,0.30453852,1842.3,1842.1,0.55]
[1746582214125,0.30453852,1842.2,1842.1,0.55]
[1746582215231,0.30453852,1842.2,1842.1,5.97858693]
[1746582215669,0.30453852,1842.2,1842.1,0.55]
[1746582215872,0.30453852,1842.2,1841.9,0.55]
[1746582216163,0.30453852,1842.2,1842.1,0.55]
[1746582216520,0.30453852,1842.2,1841.9,11.40800787]
[1746582216720,0.30453852,1842.1,1841.9,11.40800787]
[1746582216953,0.30453852,1842.1,1842.0,5.42888165]
[1746582217315,0.30453852,1842.1,1841.9,6.219]
[1746582217522,0.30453852,1842.0,1841.9,0.55]
[1746582217822,0.30453852,1842.0,1841.9,11.64917414]
[1746582220332,0.30453852,1842.0,1841.9,6.22]
[1746582221064,0.30453852,1842.0,1841.9,11.64917639]
[1746582222443,0.30453852,1842.0,1841.9,11.63517639]
[1746582225490,0.30453852,1842.0,1841.9,11.80704566]
[1746582228485,0.30453852,1842.0,1841.9,6.15104566]
[1746582228685,0.30453852,1842.0,1841.9,11.80004566]
[1746582230290,0.30453852,1842.0,1841.9,6.37086927]
[1746582230489,0.84403852,1842.0,1841.9,11.80004566]
[1746582230797,0.84403852,1842.0,1841.9,6.37086927]
[1746582230973,0.84403852,1842.0,1841.9,0.72186927]
[1746582231172,0.84403852,1842.0,1841.9,5.81686927]
[1746582231372,1.47130898,1842.0,1841.9,5.81686927]
[1746582232094,1.47130898,1842.0,1841.9,0.17186927]
[1746582232304,1.47130898,1842.0,1841.9,5.42917639]
[1746582232459,0.84403852,1842.0,1841.9,5.42917639]
[1746582232664,0.84403852,1842.0,1841.9,0.1683595]
[1746582232870,0.84403852,1842.0,1841.8,16.7542681]
[1746582233099,0.30453852,1841.9,1841.8,17.3042681]
[1746582236267,0.30453852,1841.9,1841.8,18.1232681]
[1746582236768,0.30453852,1841.9,1841.8,24.1632681]
[1746582237192,3.5395,1842.6,1842.3,5.42786354]
[1746582237716,0.5395,1842.6,1842.3,10.85560371]
[1746582238027,0.5395,1842.6,1842.4,5.4276849]
[1746582238319,0.5395,1842.6,1842.5,5.42740841]
[1746582238493,0.5395,1842.6,1842.4,5.4276849]
[1746582238994,0.5395,1842.6,1842.2,14.13606154]
[1746582239323,0.5395,1842.6,1842.5,5.97740841]
[1746582239989,0.84447352,1842.6,1842.5,5.97740841]
[1746582240191,0.30497352,1842.6,1842.5,5.97740841]
[1746582240415,0.30497352,1842.6,1842.5,0.55]
[1746582240725,0.30497352,1842.6,1842.5,0.16560147]
[1746582241020,0.87815448,1842.6,1842.5,0.16560147]
[1746582242020,0.30497352,1842.6,1842.5,0.16560147]
[1746582242519,0.30497352,1842.6,1842.5,6.14300988]
[1746582243835,0.30497352,1842.6,1842.5,6.19727661]
[1746582246032,0.30497352,1842.6,1842.5,6.96717661]
[1746582246233,0.30497352,1842.6,1842.5,12.95290988]
[1746582247104,8.96489102,1843.2,1842.9,0.55]
[1746582247303,0.5395,1843.2,1843.0,0.16146503]
[1746582247542,3.0,1843.1,1843.0,0.16146503]
[1746582247758,3.3041425,1843.1,1843.0,0.16146503]
[1746582247961,9.26928408,1843.1,1842.8,11.243]
[1746582248161,8.42623039,1842.9,1842.5,12.23714693]
[1746582248365,3.0,1842.7,1842.6,5.63]
[1746582248568,3.0,1842.7,1842.6,6.18]
[1746582253250,3.0,1842.9,1842.6,11.60695377]
[1746582253449,8.42636768,1842.9,1842.6,6.18]
[1746582254168,3.0,1842.9,1842.6,11.60708771]
[1746582254674,8.42624775,1842.9,1842.6,11.60708771]
[1746582254875,5.42652842,1842.8,1842.6,6.18]
[1746582255576,8.42652842,1842.8,1842.7,0.16268399]
[1746582255872,3.0,1842.8,1842.7,0.16268399]
[1746582256497,3.0,1842.8,1842.6,6.18]
[1746582256678,3.0,1842.8,1842.7,0.16268399]
[1746582256978,3.0,1842.8,1842.6,6.18]
[1746582257144,3.0,1842.8,1842.7,0.16268399]
[1746582257344,3.0,1842.8,1842.6,6.18]
[1746582257541,3.0,1842.8,1842.7,0.16268399]
[1746582257759,3.0,1842.8,1842.6,11.60691689]
[1746582257953,3.0,1842.8,1842.7,6.13822817]
[1746582258159,3.0,1843.0,1842.7,8.41010921]
[1746582258353,3.0,1843.1,1842.8,5.42645101]
[1746582258572,3.0,1843.1,1842.9,0.16091491]
[1746582258847,0.5395,1843.2,1842.9,5.58705284]
[1746582259046,5.96485375,1843.2,1842.9,5.58705284]
[1746582259277,3.0,1843.1,1842.9,5.58705284]
[1746582259459,0.5395,1843.3,1842.9,6.34565284]
[1746582259661,3.0,1843.2,1842.9,6.34565284]
[1746582259976,3.0,1843.2,1843.0,0.55]
[1746582260169,3.0,1843.2,1843.0,0.71089111]
[1746582261272,3.0,1843.2,1843.0,6.13672768]
[1746582261760,3.0,1843.2,1843.0,0.71089111]
[1746582262383,8.4253603,1843.2,1843.0,0.71089111]
[1746582263404,3.0,1843.2,1843.0,6.13681298]
[1746582263579,3.0,1843.2,1843.0,0.71089111]
[1746582263901,0.5395,1843.3,1843.0,6.136681]
[1746582264302,8.42486377,1843.4,1843.0,6.136681]
[1746582264804,5.4250697,1843.3,1843.0,11.765681]
[1746582265901,8.42495596,1843.4,1843.0,11.765681]
[1746582267402,8.42495596,1843.4,1843.0,11.76563816]
[1746582267570,8.42489869,1843.4,1843.0,11.76563816]
[1746582268199,5.42506227,1843.3,1843.0,11.76563816]
[1746582268684,5.42506227,1843.3,1843.0,6.33989111]
[1746582269604,3.0,1843.4,1843.2,0.55]
[1746582270114,8.42477175,1843.4,1843.3,0.15877995]
[1746582270604,3.0,1843.4,1843.3,0.15877995]
[1746582270793,8.42475859,1843.4,1843.3,0.15877995]
[1746582272407,9.86364723,1843.4,1843.3,0.15877995]
[1746582272775,5.42557352,1843.2,1843.0,11.209]
[1746582273108,8.42557352,1843.2,1843.1,0.14102477]
[1746582274203,8.96507352,1843.2,1843.1,0.14102477]
[1746582274401,5.42620368,1843.0,1842.8,6.04]
[1746582274578,5.42614798,1843.0,1842.8,0.55]
[1746582276199,5.42568117,1843.1,1842.8,0.55]
[1746582276382,5.42610474,1843.0,1842.8,0.55]
[1746582277782,10.85227375,1843.0,1842.8,0.55]
[1746582277988,5.96573039,1842.9,1842.7,5.58]
[1746582279117,5.42624445,1842.9,1842.7,5.58]
[1746582279316,5.96561717,1843.0,1842.7,5.58]
[1746582279519,5.42639014,1842.9,1842.7,5.58]
[1746582280311,8.42535683,1843.2,1842.8,6.76787997]
[1746582280312,8.96509151,1843.2,1842.8,6.76787997]
[1746582280517,3.0,1843.1,1842.8,6.7677852]
[1746582280825,3.0,1843.1,1842.8,6.76775996]
[1746582281817,3.0,1843.1,1842.8,6.76778201]
[1746582282023,3.0,1843.1,1842.8,6.7677383]
[1746582282521,3.0,1843.1,1842.8,1.3414]
[1746582282726,8.42581834,1843.1,1842.8,1.3414]
[1746582283648,5.42595033,1843.0,1842.8,1.3414]
[1746582283811,8.42583807,1843.1,1842.8,1.3414]
[1746582284143,8.42583807,1843.1,1842.8,5.58]
[1746582284144,5.42597247,1843.0,1842.8,5.58]
[1746582284333,5.42623039,1842.9,1842.8,5.58]
[1746582284841,5.42623039,1842.9,1842.6,0.7932]
[1746582285140,5.42681934,1842.7,1842.6,5.58]
[1746582285347,5.42715137,1842.6,1842.3,5.58]
[1746582285640,5.42715137,1842.6,1842.3,11.16]
[1746582285845,5.42715137,1842.6,1842.4,0.55]
[1746582286213,5.42715137,1842.6,1842.3,5.58]
[1746582286417,5.42715137,1842.6,1842.4,0.55]
[1746582287649,5.42751174,1842.5,1842.3,5.58]
[1746582287855,5.42770299,1842.4,1842.3,5.58]
[1746582288060,5.42770299,1842.4,1842.2,3.62275251]
[1746582288230,5.42799761,1842.3,1842.2,3.62275251]
[1746582288754,3.0,1842.4,1842.2,3.62275251]
[1746582288936,8.4278816,1842.4,1842.2,3.62275251]
[1746582289337,3.0,1842.4,1842.2,3.62275251]
[1746582289545,8.42785427,1842.4,1842.0,30.57471375]
[1746582291057,5.42819538,1842.3,1842.0,25.146]
[1746582292159,3.0,1842.4,1842.1,5.97845426]
[1746582292540,3.0,1842.4,1842.2,6.23518079]
[1746582293128,0.39889757,1842.8,1842.3,0.55]
[1746582293326,5.42693633,1842.7,1842.5,0.55]
[1746582293549,3.0,1842.6,1842.5,0.55]
[1746582293753,8.42671646,1842.8,1842.5,0.55]
[1746582295763,8.96588825,1842.9,1842.5,5.97735815]
[1746582296063,8.42638825,1842.9,1842.5,6.75292381]
[1746582296927,8.42638825,1842.9,1842.5,7.22197476]
[1746582297163,8.42638825,1842.9,1842.5,6.7529028]
[1746582298987,5.96516029,1843.1,1842.7,0.55]
[1746582299272,3.0,1843.1,1842.8,6.19870905]
[1746582299652,8.84022055,1843.1,1842.8,0.7722]
[1746582300374,3.41457674,1843.1,1842.8,6.19862519]
[1746582300581,3.0,1843.1,1842.9,0.12711144]
[1746582301682,8.42579118,1843.1,1842.9,0.12711144]
[1746582301850,3.0,1843.1,1842.9,0.12711144]
[1746582304207,3.0,1843.1,1842.9,5.55331506]
[1746582304486,3.0,1843.1,1842.9,0.12711144]
[1746582306284,3.0,1843.2,1842.9,5.55333285]
[1746582306445,3.0,1843.2,1843.0,0.55]
[1746582306649,3.0,1843.2,1843.0,0.6749903]
[1746582307353,8.42537247,1843.2,1843.0,0.6749903]
[1746582307549,3.0,1843.2,1843.0,0.6749903]
[1746582307794,13.84992405,1843.4,1843.0,6.10086496]
[1746582307962,6.36400128,1843.5,1843.1,5.42542871]
[1746582308281,3.0,1843.4,1843.1,6.25412871]
[1746582308468,8.42476547,1843.4,1843.1,11.83412871]
[1746582308952,8.42476547,1843.4,1843.1,6.4087]
[1746582309288,7.69732745,1843.3,1843.2,0.12494269]
[1746582309453,8.42552918,1843.2,1843.0,0.55]
[1746582310187,8.42538753,1843.2,1843.0,0.55]
[1746582312689,3.0,1843.2,1843.0,0.55]
[1746582314724,5.42522374,1843.3,1843.0,0.55]
[1746582315291,8.42535997,1843.2,1843.0,0.55]
[1746582315509,8.42535997,1843.2,1843.1,0.11975602]
[1746582316218,3.0,1843.2,1843.1,0.11975602]
[1746582317222,8.42534722,1843.2,1843.1,0.11975602]
[1746582318290,10.34990432,1843.2,1843.1,0.11975602]
[1746582319117,9.81040432,1843.2,1843.1,0.11975602]
[1746582320792,8.42534722,1843.2,1843.1,0.11975602]
[1746582320999,3.0,1843.2,1843.1,0.90685602]
[1746582321219,8.42534722,1843.2,1843.1,0.90685602]
[1746582322034,3.0,1843.2,1843.1,0.90685602]
[1746582322933,8.42534722,1843.2,1843.1,0.11975602]
[1746582324628,3.0,1843.2,1843.1,0.11975602]
[1746582326338,10.69740876,1843.2,1843.1,0.11975602]
[1746582326514,12.0824619,1843.2,1843.1,0.11975602]
[1746582326709,8.42593597,1843.0,1842.9,11.156]
[1746582327043,3.0,1843.0,1842.9,11.156]
[1746582327737,10.85054533,1843.3,1842.9,16.58218325]
[1746582327943,5.4252465,1843.3,1842.9,16.58218325]
[1746582328151,10.85053838,1843.3,1843.0,0.8089]
[1746582328310,5.4252465,1843.3,1843.0,0.8089]
[1746582328932,5.42535326,1843.2,1843.0,0.8089]
[1746582329138,5.42535326,1843.2,1842.9,11.9364]
[1746582331347,10.8509513,1843.2,1842.9,11.9364]
[1746582331555,5.42534791,1843.2,1843.0,0.55]
[1746582331849,5.42534791,1843.2,1843.0,0.84934584]
[1746582333047,3.0,1843.2,1843.0,0.84934584]
[1746582333611,3.0,1843.2,1843.0,6.27510755]
[1746582334112,3.0,1843.2,1843.0,0.84934584]
[1746582334426,3.0,1843.2,1843.0,6.2751947]
[1746582335651,3.0,1843.2,1843.0,0.84934584]
[1746582336021,3.0,1843.2,1843.0,6.27524374]
[1746582336348,3.0,1843.2,1843.0,0.84934584]
[1746582337852,8.42489167,1843.4,1843.0,6.27513003]
[1746582338255,3.0,1843.2,1843.0,6.27513003]
[1746582338859,3.0,1843.3,1843.0,6.27513003]
[1746582339357,8.42505592,1843.3,1843.0,6.27513003]
[1746582340357,8.42505592,1843.3,1843.0,0.84934584]
[1746582340860,8.42505592,1843.3,1843.0,6.42634584]
[1746582341230,10.69770312,1843.1,1843.0,5.87634584]
[1746582341636,0.5395,1843.3,1843.0,5.87634584]
[1746582341834,3.0,1843.4,1843.1,0.55]
[1746582342032,8.42482636,1843.4,1843.1,0.55]
[1746582342237,8.42482636,1843.4,1843.2,0.27441117]
[1746582343465,13.84982327,1843.4,1843.2,0.27441117]
[1746582343631,8.42482636,1843.4,1843.2,0.27441117]
[1746582343965,5.42505289,1843.3,1843.2,0.27441117]
[1746582344185,10.69711443,1843.3,1843.2,0.27441117]
[1746582344666,5.42559903,1843.2,1843.0,5.577]
[1746582345441,5.42559903,1843.2,1843.1,0.27444577]
[1746582350110,3.0,1843.3,1843.1,0.82444577]
[1746582350240,5.42447614,1843.5,1843.2,0.60424827]
[1746582350470,5.42447614,1843.5,1843.4,0.55]
[1746582350671,5.42353938,1843.9,1843.4,0.55]
[1746582350672,5.4231942,1844.0,1843.6,0.55]
[1746582350887,5.96235212,1844.1,1843.8,0.55]
[1746582351186,5.96176972,1844.3,1843.8,17.12442162]
[1746582351516,5.96178371,1844.3,1843.9,0.27283618]
[1746582351687,5.96178371,1844.3,1843.8,17.12446155]
[1746582351885,5.96178371,1844.3,1844.1,0.55]